Cogmind - Beta 11 @@@ ROGUE MODE // 2022.03.25 @ 22:21:50 Player: ChromeKnight Result: Destroyed by as-44631 with Assembled Heavy Rifle Performance ------------- Evolutions (0) 0 Regions Visited (4) 800 Robots Destroyed (24) 120 Value Destroyed (569) 569 Prototype IDs (23) 460 Alien Tech Used (0) 0 Bonus (-108) -108 TOTAL SCORE: 1841 Bonus ------- Follower Combat Kills 21 Friendly Fire -129 Cogmind --------- Core Integrity 0/250 Matter 300/300 Energy 156/160 System Corruption 0% Temperature Cool (2) Movement Walking (120) Location -9/Mines Parts ------- > --- POWER (1) -------- Light Nuclear Core > --- PROPULSION (2) --- Carbon-fiber Leg Carbon-fiber Leg > --- UTILITY (2) ------ Small Storage Unit Light Armor Plating > --- WEAPON (2) ------- AWS/Thermal > --- INVENTORY (8) ---- Light Ion Engine Light Ion Engine Flight Unit Flight Unit Small Storage Unit Visual Processing Unit Targeting Computer Light Assault Rifle Peak State ------------ > --- POWER ------------ Light Nuclear Core > --- PROPULSION ------- Carbon-fiber Leg Carbon-fiber Leg > --- UTILITY ---------- Small Storage Unit Light Armor Plating > --- WEAPON ----------- AWS/Thermal > --- INVENTORY -------- Light Ion Engine Light Ion Engine Flight Unit Flight Unit Small Storage Unit Visual Processing Unit Light Assault Rifle [Rating: 27] Favorites ----------- Power Ion Engine Engine Ion Engine Power Core Light Nuclear Core Propulsion Aluminum Leg Leg Aluminum Leg Hover Unit Improved Hover Unit Utility Small Storage Unit Storage Small Storage Unit Protection Light Armor Plating Weapon Medium Laser Energy Gun Medium Laser Ballistic Gun Light Assault Rifle Build | -11 -10 -10 -10 -9 ------- Run | Scr Mat Min Exi Min Slots Evolved . | . . . . . Power . | . . . . . Propulsion . | . . . . . Utility . | . . . . . Weapon . | . . . . . Parts Attached 26 | 7 14 1 4 . Power 4 | 2 1 . 1 . Engine 3 | 2 1 . . . Core 1 | . . . 1 . Reactor . | . . . . . Propulsion 11 | 2 7 . 2 . Treads . | . . . . . Leg 9 | 2 5 . 2 . Wheel . | . . . . . Hover 2 | . 2 . . . Flight . | . . . . . Utility 5 | 1 3 1 . . Device . | . . . . . Storage 2 | 1 1 . . . Processor . | . . . . . Hackware . | . . . . . Protection 3 | . 2 1 . . Artifact . | . . . . . Weapon 6 | 2 3 . 1 . Energy Gun 4 | 2 1 . 1 . Energy Cannon . | . . . . . Ballistic Gun 2 | . 2 . . . Ballistic Cannon . | . . . . . Launcher . | . . . . . Special Weapon . | . . . . . Impact Weapon . | . . . . . Slashing Weapon . | . . . . . Piercing Weapon . | . . . . . Special Melee Weapon . | . . . . . Unidentified Prototypes . | . . . . . Parts Lost 3 | . 2 1 . . Power . | . . . . . Propulsion 1 | . 1 . . . Utility 2 | . 1 1 . . Weapon . | . . . . . Highest Loss Streak 2 | . 2 1 . . To Critical Strikes . | . . . . . Average Slot Usage (%) 92 | . 94 94 88 85 Engine 10 | . 14 14 4 . Core 3 | . . . 9 14 Leg 22 | . 26 . 17 28 Hover 5 | . 1 28 10 . Storage 14 | . 14 14 14 14 Protection 11 | . 11 8 14 14 Energy Gun 16 | . 20 . 11 14 Ballistic Gun 6 | . 5 28 5 . Naked Turns . | . . . . . Heaviest Build 21 | 14 17 13 21 21 Greatest Support 30 | 20 20 14 30 30 Greatest Overweight (x) 1 | 1 1 . 1 . Average Overweight (x) . | . . . . . Largest Inventory Capacity 8 | 8 8 8 8 8 Average Capacity 7 | 7 8 8 8 8 Most Carried 8 | 2 8 8 8 8 Average Carried 6 | 1 6 7 7 8 Final Capacity 8 | 8 8 8 8 8 Final Carried 8 | 2 8 7 8 8 Class Distribution -------------------- 88% | Mutant 8% | Scavenger-Mutant Dominant Class ---------------- Mutant | -10/Materials Mutant | -10/Mines Mutant | -10/Exiles Mutant | -9/Mines Resources | -11 -10 -10 -10 -9 ----------- Run | Scr Mat Min Exi Min Matter Collected 506 | 198 203 55 46 4 Remotely . | . . . . . Salvage Created 954 | . 538 159 46 211 Parts 46 | . 28 6 4 8 Haulers Intercepted 2 | . 2 . . . Recyclers Shooed 1 | . 1 . . . Parts Field Recycled . | . . . . . Retrieved Matter . | . . . . . Parts Self-Destructed . | . . . . . Prevented . | . . . . . Kills | -11 -10 -10 -10 -9 ------- Run | Scr Mat Min Exi Min Combat Hostiles Destroyed 20 | . 9 2 1 8 Guns 20 | . 9 2 1 8 Classes Destroyed 9 | . 6 1 1 1 Worker 2 | . 2 . . . Hauler 2 | . 2 . . . Recycler 1 | . . 1 . . Operator 1 | . 1 . . . Watcher 2 | . 2 . . . Swarmer 2 | . 1 . . 1 Grunt 13 | . 8 2 . 3 Hunter 1 | . . . 1 . Assembled 5 | . . . . 5 Best Kill Streak 6 | . 2 3 1 6 Combat Bots Only 6 | . 2 2 1 6 Max Kills in Single Turn 2 | . 2 1 1 1 Gunslinging . | . . . . . Exploded . | . . . . . Melee . | . . . . . Uniques/NPCs Destroyed . | . . . . . Combat | -11 -10 -10 -10 -9 -------- Run | Scr Mat Min Exi Min Damage Taken 1043 | . 674 228 . 141 Core 258 | . 153 69 . 36 Absorbed by Shields . | . . . . . Core Remaining (%) 100 | 100 . . . . Volleys Fired 106 | . 91 15 . . Largest 2 | . 2 2 . . Hottest 100 | . 100 40 . . Shots Fired 210 | . 145 30 2 33 Gun 210 | . 145 30 2 33 Cannon . | . . . . . Launcher . | . . . . . Special . | . . . . . Kinetic 56 | . 26 30 . . Thermal 154 | . 119 . 2 33 Explosive . | . . . . . Electromagnetic . | . . . . . Robot Hit Streak 9 | . 9 7 1 5 Robot Miss Streak 8 | . 8 1 1 3 Penetration Max . | . . . . . Secondary Targets . | . . . . . Autonomous 35 | . . . 2 33 Shots Hit Robots 119 | . 76 23 1 19 Core Hits 46 | . 28 8 1 9 Critical Kills . | . . . . . Critical Parts Destroyed . | . . . . . Critical Strikes 5 | . 5 . . . Burn 5 | . 5 . . . Melee Attacks . | . . . . . Impact . | . . . . . Slashing . | . . . . . Piercing . | . . . . . Sneak Attacks . | . . . . . Combat Hostiles . | . . . . . Follow-up Attacks . | . . . . . Damage Inflicted 1717 | . 874 189 32 622 Guns 1717 | . 874 189 32 622 Cannons . | . . . . . Explosions . | . . . . . Melee . | . . . . . Ramming . | . . . . . Kinetic 349 | . 160 189 . . Thermal 1368 | . 714 . 32 622 Explosive . | . . . . . Electromagnetic . | . . . . . Impact . | . . . . . Slashing . | . . . . . Piercing . | . . . . . Highest Corruption . | . . . . . Average Corruption . | . . . . . Corruption Purged . | . . . . . Corruption Blocked . | . . . . . Overload Shots . | . . . . . Overflow Damage . | . . . . . Projectiles . | . . . . . Explosions . | . . . . . Melee . | . . . . . Knockbacks . | . . . . . Impact . | . . . . . Kinetic . | . . . . . Secondary . | . . . . . Self-Inflicted Damage . | . . . . . Shots . | . . . . . Rammed . | . . . . . Targets Rammed . | . . . . . Kicked . | . . . . . Crushed . | . . . . . Highest Temperature 355 | . 355 138 . . Average Temperature 128 | . 134 81 . . Received Heat Transfer 345 | . 180 129 . 36 Effects 8 | . 8 . . . Shutdowns 1 | . 1 . . . Energy Bleed 3 | . 3 . . . Interference 3 | . 3 . . . Short Circuit 1 | . 1 . . . Siege Activations . | . . . . . Robots Corrupted . | . . . . . Combat Hostiles . | . . . . . Parts Fried . | . . . . . Impact Corruptions . | . . . . . Robots Melted . | . . . . . Combat Hostiles . | . . . . . Parts Melted 9 | . 9 . . . Heat Transferred 3319 | . 2468 . 37 814 Parts Sabotaged . | . . . . . Parts Stolen . | . . . . . Parts Stripped . | . . . . . Power Chain Reactions . | . . . . . Missiles Intercepted . | . . . . . Alert | -11 -10 -10 -10 -9 ------- Run | Scr Mat Min Exi Min Peak Influence 217 | . 217 75 . 147 Initial 30 | . . 30 . . Average 65 | . 68 59 . 84 Maximum Alert Level 1 | . 1 . . . Low Security (%) 99 | 100 99 100 . 100 Level 1 . | . . . . . Level 2 . | . . . . . Level 3 . | . . . . . Level 4 . | . . . . . Level 5 . | . . . . . High Security . | . . . . . Max Security . | . . . . . Squads Dispatched 4 | . 4 . . . Investigation 2 | . 2 . . . Extermination . | . . . . . Reinforcement 2 | . 2 . . . Assault . | . . . . . Garrison . | . . . . . Intercept . | . . . . . Searches Triggered . | . . . . . Construction Impeded . | . . . . . Haulers Reinforced . | . . . . . Active Scanning Responses . | . . . . . Cargo Convoy Interrupts . | . . . . . Stealth | -11 -10 -10 -10 -9 --------- Run | Scr Mat Min Exi Min Distress Signals 3 | . 3 . . . Communications Jammed . | . . . . . Distress Signals . | . . . . . Times Spotted 54 | . 24 3 . 27 Peak Tracking Total 21 | . 5 2 . 21 Tactical Retreats 1 | . 1 . . . Traps | -11 -10 -10 -10 -9 ------- Run | Scr Mat Min Exi Min Traps Triggered 1 | . 1 . . . Indirectly . | . . . . . Trap Hack Attempts . | . . . . . Triggered . | . . . . . Disarmed . | . . . . . Reprogrammed . | . . . . . Reused . | . . . . . Traps Extracted . | . . . . . Installed . | . . . . . Triggered . | . . . . . Machines | -11 -10 -10 -10 -9 ---------- Run | Scr Mat Min Exi Min Machines Disabled . | . . . . . Max in Single Turn . | . . . . . Machines Sabotaged . | . . . . . Garrisons Compromised . | . . . . . Overloaded Fab Kills . | . . . . . Hacking | -11 -10 -10 -10 -9 --------- Run | Scr Mat Min Exi Min Machines Accessed 4 | . 3 . 1 . Terminals 3 | . 3 . . . Fabricators . | . . . . . Repair Stations . | . . . . . Recycling Units . | . . . . . Scanalyzers . | . . . . . Garrison Access . | . . . . . Total Hacks 9 | . 8 . 1 . Successful 5 | . 4 . 1 . Failed 4 | . 4 . . . Catastrophic . | . . . . . Database Lockouts . | . . . . . Manual 2 | . . . 2 . Terminals 8 | . 8 . . . Fabricators . | . . . . . Repair Stations . | . . . . . Recycling Units . | . . . . . Scanalyzers . | . . . . . Garrison Access . | . . . . . Terminal Hacks 5 | . 4 . 1 . Record 1 | . 1 . . . Robot Analysis 1 | . 1 . . . Alert Level 2 | . 2 . . . EX-Prototype ID Bank 1 | . . . 1 . Fabricator Hacks . | . . . . . Repair Station Hacks . | . . . . . Recycling Unit Hacks . | . . . . . Scanalyzer . | . . . . . Garrison Access Hacks . | . . . . . Unauthorized Hacks . | . . . . . Terminals . | . . . . . Fabricators . | . . . . . Repair Stations . | . . . . . Recycling Units . | . . . . . Scanalyzers . | . . . . . Garrison Access . | . . . . . Data Cores Recovered . | . . . . . Used . | . . . . . Hacking Detections 2 | . 2 . . . Full Trace Events 1 | . 1 . . . Feedback Events . | . . . . . Feedback Blocked . | . . . . . Robot Schematics Acquired . | . . . . . Robots Built . | . . . . . Authchips . | . . . . . Time . | . . . . . Total Robot Build Rating . | . . . . . Part Schematics Acquired . | . . . . . Parts Built . | . . . . . Authchips . | . . . . . Time . | . . . . . Total Part Build Rating . | . . . . . Parts Repaired . | . . . . . Time . | . . . . . Parts Recycled . | . . . . . Recycled Matter . | . . . . . Retrieved Matter . | . . . . . Retrieved Components . | . . . . . Parts Scanalyzed . | . . . . . Part Schematics Acquired . | . . . . . Parts Damaged . | . . . . . Bothacking | -11 -10 -10 -10 -9 ------------ Run | Scr Mat Min Exi Min Used RIF Installer . | . . . . . Robots Hacked . | . . . . . Non-combat . | . . . . . Combat . | . . . . . Robot Hacks Applied . | . . . . . Relay Couplers Released . | . . . . . Fabnet Peak Effective % . | . . . . . Robots Rewired 4 | . . . 4 . Allies Hacked . | . . . . . Hacks Repelled . | . . . . . Allies | -11 -10 -10 -10 -9 -------- Run | Scr Mat Min Exi Min Total Allies 4 | . . . 4 . Largest Group 4 | . . . 4 4 Highest-Rated Group 32 | . . . 32 32 Highest-Rated Ally 8 | . . . 8 8 Total Orders . | . . . . . Ally Attacks 17 | . . . . 17 Total Damage 88 | . . . . 88 Kills 4 | . . . . 4 Allies Corrupted . | . . . . . Allies Melted . | . . . . . Intel | -11 -10 -10 -10 -9 ------- Run | Scr Mat Min Exi Min Robot Analysis Total 1 | . 1 . . . Derelict Logs Recovered 1 | . . . . 1 Drone Launches . | . . . . . Drone Recoveries . | . . . . . Exploration | -11 -10 -10 -10 -9 ------------- Run | Scr Mat Min Exi Min Turns Passed 1651 | 56 994 117 396 88 Spaces Moved 1170 | 39 567 120 372 72 Core 5 | 5 . . . . Treads . | . . . . . Legs 811 | 34 503 . 202 72 Wheels . | . . . . . Hover 354 | . 64 120 170 . Flight . | . . . . . Fastest Speed 50 | 50 56 56 56 120 Average Speed 103 | 112 114 56 98 120 Slowest Speed 190 | 120 190 56 190 120 Overloaded Moves . | . . . . . Propulsion Burnouts . | . . . . . Robots Hopped . | . . . . . Cave-ins Triggered . | . . . . . Exploration Rate (%) 42 | 3 72 24 87 28 Regions Visited 4 Branch Regions 3 Pre-discovered Areas 1 | . . 1 . . Known Exits Taken . | . . . . . Unknown Exits Taken 4 | 1 1 1 1 . Scrap Searched 1 | . . . . 1 Spaces Dug . | . . . . . Terrain Destroyed 11 | . . . . 11 Melee . | . . . . . Projectile 11 | . . . . 11 AOE . | . . . . . Terrain Rammed . | . . . . . Walls Destroyed . | . . . . . Machines Disabled . | . . . . . Actions | -11 -10 -10 -10 -9 --------- Run | Scr Mat Min Exi Min Total 1445 | 47 778 145 401 74 Wait 90 | 1 77 10 . 2 Move 1166 | 38 566 119 371 72 Hop . | . . . . . Pick Up 17 | 1 15 . 1 . Fast Attach 14 | 6 4 . 4 . Attach 5 | . 4 1 . . Detach . | . . . . . Swap 7 | 1 6 . . . Drop 20 | . 15 . 5 . Fire 106 | . 91 15 . . Melee . | . . . . . Ram . | . . . . . Kick . | . . . . . Crush . | . . . . . Escape Stasis . | . . . . . Rewire 20 | . . . 20 . Trap . | . . . . . Miscellaneous . | . . . . . Route ------- -11/Scrapyard -10/Materials (discovered 2 exits: [*Mat] / [*Min]) -10/Mines (discovered 2 exits: [*Mat] / *Exi) -10/Exiles (discovered 2 exits: [*Min x2]) -9/Mines History --------- Turn | Location | Event 24 | -11/Scrapyard | Discovered new exit (range 15) 57 | -11/Scrapyard | Entered Materials 150 | -10/Materials | Discovered new exit (range 14) 308 | -10/Materials | Build established: Mutant 846 | -10/Materials | Core integrity fell below 50% 963 | -10/Materials | Discovered new exit (range 14) 1051 | -10/Materials | Entered Mines 1090 | -10/Mines | Core integrity fell below 20% 1120 | -10/Mines | Discovered new exit (range 2) 1121 | -10/Mines | Learned location of Storage (-9) 1136 | -10/Mines | Deemed a non-threat by the Exiles lab entrance 1136 | -10/Mines | Discovered new exit (range 5) 1168 | -10/Mines | Entered Exiles 1168 | -10/Exiles | Found Exiles lab destroyed 1177 | -10/Exiles | Discovered new exit (range 15) 1244 | -10/Exiles | Opened EX-Vault 1249 | -10/Exiles | Found AWS/Thermal 1551 | -10/Exiles | Discovered new exit (range 10) 1564 | -10/Exiles | Entered Mines 1564 | -9/Mines | Accompanied by 4 allies 1588 | -9/Mines | Learned location of 1 exit from Materials 1636 | -9/Mines | Assembled infested the area 1641 | -9/Mines | Assisted by a Guerilla fighting off Assembled 1652 | -9/Mines | Destroyed by as-44631 with Assembled Heavy Rifle Last Messages --------------- 01636_ ALERT: Infestation in the mines, dispatching Demolisher response squad. 01637_ G-47 Trooper destroyed. 01639_ YK-EY5(h): "I'll hold them off! Go on ahead or try to find another way!" 01639_ HV Slug penetrates Wall. 01640_ K-01 Serf collects debris. 01641_ A derelict emerges from the shadows: "You need to get out of here! I've been tracking a group of Assembled to figure out where they're coming from, and they're closing on this area, come on!" 01642_ as-30665 destroyed. 01642_ HV Slug penetrates G-34 Mercenary. 01642_ G-34 Mercenary destroyed. 01645_ Destroyed Asb. Hover Unit. 01645_ K-01 Serf collects debris. 01646_ as-12595 destroyed. 01648_ as-91250 destroyed. 01649_ as-64817 destroyed. 01650_ as-71763 destroyed. 01652_ Destroyed Asb. Hover Unit. Map ----- +----------------------------------------------------+ | ?????????????????????????????????????????????????? | | ?????????????????????????????????????????????????? | | ?????????????????????????????????????????????????? | | ?????????????????????????????????????????????????? | | ?????????????????????????????????????????????????? | | ?????????????????????????????????????????????????? | | ?????????????????????????????????????????????????? | | ?????????????????????????????????????????????????? | | ?????????????????????????????????????????????????? | | ?????????????????????????????????????????????????? | | ?????????????????????????????????????????????????? | | ?????????????????????????????????????????????????? | | ???????????????????##????????????????????????????? | | ??????????????????? #???????????????????????????? | | ???????????????????? ###????????????????????????? | | ???????????????????? #???????????????????????? | | ????????????????????? ####?????? ???????????? | | ????????????????????? ##???? ???????????? | | ?????????????????????? ##? ??????????? | | ?????????????????????? ## ??????????? | | ??????????????????????? ??????????? | | ??????????????????????? ?????????? | | ???????????????????????? ?????????? | | ???????????????????????? ????????? | | ????????????????????????# ????????? | | ???????????????????????##@ #???????????? | | ????????????????????#### #????????????? | | ???????????????????## ########????????????? | | ???????????????????# ##???????????????????? | | ???????????????????# a ;#???????????????????? | | ???????????????????## !###?????????????????? | | ????????????????????## a%a|%! #?????????????????? | | ?????????????????????### a%aaa #?????????????????? | | ???????????????????????# ###aa##?????????????????? | | ???????????????????????# ###aa###????????????????? | | ???????????????????????# % ?????????? | | ???????????????????????# "## a ?????????? | | ???????????????????????#h"##?####? ?????????? | | ??###???????######????## ##????????????????????? | | ?? ?????## ##???# #????????????????????? | | ???""" ##### *% #??## #????????????????????? | | ???""" = #### ##????????????????????? | | ???""" * ## ##?????????????????????? | | # ### =% ## %= #??????????????????????? | | ?????????# ###"! ##??????????????????????? | | ????????## [ ## #####%["#???????????????????????? | | ????????#"=%=### "????????????????????????? | | ???????## [%##?# #????????????????????????? | | ??#????# ==#??##### #???????????????????????? | | ??# ???# =%[#??????# ????????????????????? | +----------------------------------------------------+ Best States ------------- Heat Dissipation 25 Energy Generation 14 Energy Capacity 250 Matter Stores 300 Matter Capacity 300 Sight Range 16 Terrain Scan Density 10 Armor Coverage 150 Evasion (%) 55 Item Schematics ----------------- None Robot Schematics ------------------ None Fabricated ------------ Nothing Alien Tech Used ----------------- None Achievements -------------- None Challenges ------------ None Game ------ Seed HackingMagneticSteel Manual? 0 Play Time 00:14:25 Cumulative 251.7 hours Start 2022.03.25 @ 22:06:30 End 2022.03.25 @ 22:21:50 Sessions 1 Manual Loads 0 Difficulty Rogue Special Mode None Game No. 476 Rogue 321 Adventurer 148 Explorer 7 Win Type - Total 10 Types 8/0/1/1/0/0/0/0/0 Lore% 70 Gallery% 81 Achievement% 65 Wizard Run 0 Options --------- ASCII 0 Keyboard 0 Movement Numpad Keybinds 0 Fullscreen 1 Font 18/SmallcapsGlow Map View 76x50 Tactical HUD 1 Map Filters NONE Filters NONE Steam 1 RUN: 4ac5f0b2-d025-4b07-a947-076ed39bf1a6